fUSD/lending_fUSD_20240712
["ID","MTS","AMOUNT","RATE_DAILY","PERIOD"]
[331792634,1720765866905,-500.0,0.00013753,2]
[331792635,1720765866914,-868.6,0.00013753,2]
[331792636,1720765866924,-500.0,0.00013753,2]
[331792637,1720765866934,-500.0,0.00013753,2]
[331792638,1720765866943,-503.87,0.00013753,2]
[331792639,1720765866953,-151.0,0.00013753,2]
[331792640,1720765866963,-151.0,0.00013753,2]
[331792641,1720765866973,-500.0,0.00013753,2]
[331792642,1720765866982,-500.0,0.00013753,2]
[331792643,1720765866992,-500.0,0.00013753,2]
[331792644,1720765867001,-500.0,0.00013753,2]
[331792645,1720765867010,-500.0,0.00013753,2]
[331792646,1720765867020,-1463.05,0.00013753,2]
[331792647,1720765867029,-500.0,0.00013753,2]
[331792648,1720765867039,-500.0,0.00013753,2]
[331792649,1720765867048,-1711.11,0.00013753,2]
[331792650,1720765867057,-500.0,0.00013753,2]
[331792651,1720765867066,-500.0,0.00013753,2]
[331792652,1720765867075,-500.0,0.00013753,2]
[331792653,1720765867085,-776.49,0.00013753,2]
[331792654,1720765867095,-500.0,0.00013753,2]
[331792655,1720765867104,-500.0,0.00013753,2]
[331792656,1720765867113,-940.12,0.00013753,2]
[331792657,1720765867123,-500.0,0.00013753,2]
[331792658,1720765867133,-500.0,0.00013753,2]
[331792659,1720765867142,-500.0,0.00013753,2]
[331792660,1720765867152,-500.0,0.00013753,2]
[331792661,1720765867162,-500.0,0.00013753,2]
[331792662,1720765867172,-1103.87,0.00013753,2]
[331792663,1720765867182,-838.82,0.00013753,2]
[331792664,1720765867191,-500.0,0.00013753,2]
[331792665,1720765867200,-906.68,0.00013753,2]
[331792666,1720765867209,-500.0,0.00013753,2]
[331792667,1720765867218,-500.0,0.00013753,2]
[331792668,1720765867228,-500.0,0.00013753,2]
[331792669,1720765867239,-500.0,0.00013753,2]
[331792670,1720765867248,-774.99,0.00013753,2]
[331792671,1720765867259,-500.0,0.00013753,2]
[331792672,1720765867268,-500.0,0.00013753,2]
[331792673,1720765867279,-1574.49,0.00013753,2]
[331792674,1720765867289,-500.0,0.00013753,2]
[331792675,1720765867299,-1003.46,0.00013753,2]
[331792676,1720765867309,-715.19,0.00013753,2]
[331792677,1720765867319,-500.0,0.00013753,2]
[331792678,1720765867329,-500.0,0.00013753,2]
[331792679,1720765867340,-500.0,0.00013753,2]
[331792680,1720765867349,-500.0,0.00013753,2]
[331792681,1720765867359,-500.0,0.00013753,2]
[331792682,1720765867369,-151.0,0.00013753,2]
[331792683,1720765867382,-2671.99,0.00013753,2]
[331792684,1720765867392,-151.0,0.00013753,2]
[331792685,1720765867403,-500.0,0.00013753,2]
[331792686,1720765867413,-811.17,0.00013753,2]
[331792687,1720765867423,-500.0,0.00013753,2]
[331792688,1720765867434,-500.0,0.00013753,2]
[331792689,1720765867444,-500.0,0.00013753,2]
[331792690,1720765867455,-1169.16,0.00013753,2]
[331792691,1720765867465,-500.0,0.00013753,2]
[331792692,1720765867474,-500.0,0.00013753,2]
[331792693,1720765867484,-804.64,0.00013753,2]
[331792694,1720765867496,-516.06,0.00013753,2]
[331792695,1720765867505,-500.0,0.00013753,2]
[331792696,1720765867515,-500.0,0.00013753,2]
[331792697,1720765867523,-500.0,0.00013753,2]
[331792698,1720765867533,-500.0,0.00013753,2]
[331792699,1720765867542,-500.0,0.00013753,2]
[331792700,1720765867553,-500.0,0.00013753,2]
[331792701,1720765867562,-913.43,0.00013753,2]
[331792702,1720765867575,-151.0,0.00013753,2]
[331792703,1720765867585,-151.0,0.00013753,2]
[331792704,1720765867594,-500.0,0.00013753,2]
[331792705,1720765867603,-500.0,0.00013753,2]
[331792706,1720765867612,-1567.42,0.00013753,2]
[331792707,1720765867623,-1159.17,0.00013753,2]
[331792708,1720765867632,-1123.97,0.00013753,2]
[331792709,1720765867644,-7796.51,0.00013753,2]
[331792710,1720765867654,-682.47,0.00013753,2]
[331792711,1720765867664,-500.0,0.00013753,2]
[331792712,1720765867674,-500.0,0.00013753,2]
[331792713,1720765867683,-3427.86,0.00013753,2]
[331792714,1720765867693,-884.1,0.00013753,2]
[331792715,1720765867705,-500.0,0.00013753,2]
[331792716,1720765867715,-499.39593817,0.00013753,2]
[331792717,1720765867726,-761.42,0.00013753,2]
[331792718,1720765867736,-151.0,0.00013753,2]
[331792719,1720765867746,-151.0,0.00013753,2]
[331792720,1720765867756,-500.0,0.00013753,2]
[331792721,1720765867766,-500.0,0.00013753,2]
[331792722,1720765867777,-500.0,0.00013753,2]
[331792723,1720765867786,-500.0,0.00013753,2]
[331792724,1720765867795,-500.0,0.00013753,2]
[331792725,1720765867804,-500.0,0.00013753,2]
[331792726,1720765867814,-500.0,0.00013753,2]
[331792727,1720765867823,-151.0,0.00013753,2]
[331792728,1720765867833,-500.0,0.00013753,2]
[331792729,1720765867842,-151.0,0.00013753,2]
[331792730,1720765867851,-500.0,0.00013753,2]
[331792731,1720765867860,-500.0,0.00013753,2]
[331792732,1720765867869,-500.0,0.00013753,2]
[331792733,1720765867880,-2349.61,0.00013753,2]
[331792734,1720765867890,-2824.19,0.00013753,2]
[331792735,1720765867899,-544.06,0.00013753,2]
[331792736,1720765867910,-500.0,0.00013753,2]
[331792737,1720765867919,-1413.14,0.00013753,2]
[331792738,1720765867928,-500.0,0.00013753,2]
[331792739,1720765867938,-500.0,0.00013753,2]
[331792740,1720765867947,-151.0,0.00013753,2]
[331792741,1720765867956,-151.0,0.00013753,2]
[331792742,1720765867965,-484.46382793,0.00013753,2]
[331792743,1720765867974,-500.0,0.00013753,2]
[331792744,1720765867984,-500.0,0.00013753,2]
[331792745,1720765867994,-500.0,0.00013753,2]
[331792746,1720765868004,-500.0,0.00013753,2]
[331792747,1720765868014,-500.0,0.00013753,2]
[331792748,1720765868024,-500.0,0.00013753,2]
[331792749,1720765868033,-151.0,0.00013753,2]
[331792750,1720765868042,-151.0,0.00013753,2]
[331792751,1720765868052,-746.16,0.00013753,2]
[331792752,1720765868062,-500.0,0.00013753,2]
[331792753,1720765868072,-1040.64,0.00013753,2]
[331792754,1720765868081,-500.0,0.00013753,2]
[331792755,1720765868090,-568.05,0.00013753,2]
[331792756,1720765868099,-1225.06,0.00013753,2]
[331792757,1720765868109,-3411.217035,0.00013753,2]
[331792758,1720765868128,-3411.217035,0.00013753,2]
[331792759,1720765868138,-500.0,0.00013753,2]
[331792760,1720765868148,-500.0,0.00013753,2]
[331792761,1720765868158,-945.48,0.00013753,2]
[331792762,1720765868168,-502.01,0.00013753,2]
[331792763,1720765868178,-500.0,0.00013753,2]
[331792764,1720765868188,-1864.03,0.00013753,2]
[331792765,1720765868198,-500.0,0.00013753,2]
[331792766,1720765868209,-3411.217035,0.00013753,2]
[331792767,1720765868219,-3411.217035,0.00013753,2]
[331792768,1720765868232,-782.62,0.00013753,2]
[331792769,1720765868243,-3139.48,0.00013753,2]
[331792770,1720765868257,-151.0,0.00013753,2]
[331792771,1720765868268,-151.0,0.00013753,2]
[331792772,1720765868279,-500.0,0.00013753,2]
[331792773,1720765868289,-500.0,0.00013753,2]
[331792774,1720765868300,-967.92,0.00013753,2]
[331792775,1720765868313,-760.77,0.00013753,2]
[331792776,1720765868324,-294.165004,0.00013753,2]
[331792777,1720765868337,-500.0,0.00013753,2]
[331792778,1720765868348,-500.0,0.00013753,2]
[331792779,1720765868361,-500.0,0.00013753,2]
[331792780,1720765868372,-817.59,0.00013753,2]
[331792781,1720765868382,-1000.0,0.00013753,2]
[331792782,1720765868393,-500.0,0.00013753,2]
[331792783,1720765868406,-672.02,0.00013753,2]
[331792784,1720765868416,-500.0,0.00013753,2]
[331792785,1720765868427,-500.0,0.00013753,2]
[331792786,1720765868438,-503.52,0.00013753,2]
[331792787,1720765868451,-500.0,0.00013753,2]
[331792788,1720765868463,-159.94,0.00013753,2]
[331792789,1720765868474,-500.0,0.00013753,2]
[331792790,1720765868485,-500.0,0.00013753,2]
[331792791,1720765868500,-500.0,0.00013753,2]
[331792792,1720765868511,-927.94,0.00013753,2]
[331792793,1720765868523,-500.0,0.00013753,2]
[331792794,1720765868536,-1369.87,0.00013753,2]
[331792795,1720765868547,-500.0,0.00013753,2]
[331792796,1720765868558,-500.0,0.00013753,2]
[331792797,1720765868571,-500.0,0.00013753,2]
[331792798,1720765868581,-500.0,0.00013753,2]
[331792799,1720765868591,-500.0,0.00013753,2]
[331792800,1720765868601,-510.11,0.00013753,2]
[331792801,1720765868612,-500.0,0.00013753,2]
[331792802,1720765868623,-883.29,0.00013753,2]
[331792803,1720765868634,-500.0,0.00013753,2]
[331792804,1720765868647,-500.0,0.00013753,2]
[331792805,1720765868658,-703.12,0.00013753,2]
[331792806,1720765868671,-500.0,0.00013753,2]
[331792807,1720765868682,-1249.82,0.00013753,2]
[331792808,1720765868692,-500.0,0.00013753,2]
[331792809,1720765868704,-151.0,0.00013753,2]
[331792810,1720765868716,-698.85,0.00013753,2]
[331792811,1720765868728,-500.0,0.00013753,2]
[331792812,1720765868740,-513.61,0.00013753,2]
[331792813,1720765868751,-500.0,0.00013753,2]
[331792814,1720765868762,-500.0,0.00013753,2]
[331792815,1720765868774,-500.0,0.00013753,2]
[331792816,1720765868783,-500.0,0.00013753,2]
[331792817,1720765868793,-214.158926,0.00013753,2]
[331792818,1720765868803,-214.158926,0.00013753,2]
[331792819,1720765868813,-3390.01,0.00013753,2]
[331792820,1720765868822,-500.0,0.00013753,2]
[331792821,1720765868832,-500.0,0.00013753,2]
[331792822,1720765868842,-522.91,0.00013753,2]
[331792823,1720765868854,-977.7,0.00013753,2]
[331792824,1720765868865,-214.158926,0.00013753,2]
[331792825,1720765868875,-1182.584579,0.00013753,2]
[331792826,1720765868884,-214.158926,0.00013753,2]
[331792827,1720765868894,-1182.584579,0.00013753,2]
[331792828,1720765868903,-500.0,0.00013753,2]
[331792829,1720765868914,-641.99,0.00013753,2]
[331792830,1720765868924,-500.0,0.00013753,2]
[331792831,1720765868934,-500.0,0.00013753,2]
[331792832,1720765868945,-500.0,0.00013753,2]
[331792833,1720765868955,-500.0,0.00013753,2]
[331792834,1720765868965,-853.13,0.00013753,2]
[331792835,1720765868975,-500.0,0.00013753,2]
[331792836,1720765868991,-760.44,0.00013753,2]
[331792837,1720765869002,-1182.584579,0.00013753,2]
[331792838,1720765869013,-1182.584579,0.00013753,2]
[331792839,1720765869024,-534.54,0.00013753,2]
[331792840,1720765869035,-500.0,0.00013753,2]
[331792841,1720765869047,-440.15241478,0.00013753,2]
[331792842,1720765869058,-500.0,0.00013753,2]
[331792843,1720765869068,-500.0,0.00013753,2]
[331792844,1720765869080,-500.0,0.00013753,2]
[331792845,1720765869091,-789.27,0.00013753,2]
[331792846,1720765869103,-1308.59,0.00013753,2]
[331792847,1720765869114,-500.0,0.00013753,2]
[331792848,1720765869125,-500.0,0.00013753,2]
[331792849,1720765869136,-174.43,0.00013769,2]
[331792850,1720765869146,-150.0,0.00013785,2]
[331792851,1720765869159,-150.0,0.00013804,2]
[331792852,1720765869171,-151.0,0.00013807,2]
[331792853,1720765869181,-151.0,0.00013807,2]
[331792854,1720765869191,-151.0,0.00013807,2]
[331792855,1720765869202,-191.349304,0.00013807,2]
[331792856,1720765869212,-151.0,0.00013807,2]
[331792857,1720765869222,-315.615147,0.00013807,2]
[331792858,1720765869232,-315.615147,0.00013807,2]
[331792859,1720765869242,-151.0,0.00013807,2]
[331792860,1720765869252,-151.0,0.00013807,2]
[331792861,1720765869263,-500.0,0.00013807,2]
[331792862,1720765869273,-500.0,0.00013807,2]
[331792863,1720765869283,-500.0,0.00013807,2]
[331792864,1720765869294,-500.0,0.00013807,2]
[331792865,1720765869304,-500.0,0.00013807,2]
[331792866,1720765869314,-500.0,0.00013807,2]
[331792867,1720765869324,-500.0,0.00013808,2]
[331792868,1720765869334,-500.0,0.00013808,2]
[331792869,1720765869344,-500.0,0.00013808,2]
[331792870,1720765869358,-500.0,0.00013808,2]
[331792871,1720765869368,-500.0,0.00013808,2]
[331792872,1720765869377,-500.0,0.00013808,2]
[331792873,1720765869387,-177.98437988,0.00013808,2]
[331792874,1720765869398,-500.0,0.00013808,2]
[331792875,1720765869408,-500.0,0.00013808,2]
[331792876,1720765869418,-500.0,0.00013808,2]
[331792877,1720765869428,-500.0,0.00013808,2]
[331792878,1720765869438,-500.0,0.00013808,2]
[331792879,1720765869448,-500.0,0.00013808,2]
[331792880,1720765869458,-500.0,0.00013808,2]
[331792881,1720765869468,-600.13,0.00013808,2]
[331792882,1720765869478,-500.0,0.00013808,2]
[331792883,1720765869488,-151.0,0.00013808,2]
[331792884,1720765869500,-533.46,0.00013808,2]
[331792885,1720765869511,-500.0,0.00013808,2]
[331792886,1720765869522,-151.0,0.00013808,2]
[331792887,1720765869534,-193.197325,0.00013808,2]
[331792888,1720765869545,-151.0,0.00013808,2]
[331792889,1720765869555,-500.0,0.00013808,2]
[331792890,1720765869813,-500.0,0.00013808,2]
[331792891,1720765869823,-500.0,0.00013808,2]
[331792892,1720765869834,-500.0,0.00013808,2]
[331792893,1720765869845,-151.0,0.00013808,2]
[331792894,1720765869856,-151.0,0.00013808,2]
[331792895,1720765869867,-547.29,0.00013808,2]
[331792896,1720765869877,-527.94,0.00013808,2]
[331792897,1720765869888,-151.0,0.00013808,2]
[331792898,1720765869898,-500.0,0.00013808,2]
[331792899,1720765869908,-500.0,0.00013808,2]
[331792900,1720765869918,-500.0,0.00013808,2]
[331792901,1720765869927,-151.0,0.00013808,2]
[331792902,1720765869937,-500.0,0.00013808,2]
[331792903,1720765869948,-492.17516293,0.00013808,2]
[331792904,1720765869958,-151.0,0.00013808,2]
[331792905,1720765869971,-500.0,0.00013808,2]
[331792906,1720765869981,-500.0,0.00013808,2]
[331792907,1720765869992,-500.0,0.00013808,2]
[331792908,1720765870002,-829.62,0.00013808,2]
[331792909,1720765870014,-678.42,0.00013808,2]
[331792910,1720765870026,-151.0,0.00013808,2]
[331792911,1720765870035,-203.61932943,0.00013808,2]
[331792912,1720765870045,-500.0,0.00013808,2]
[331792913,1720765870054,-500.0,0.00013808,2]
[331792914,1720765870064,-500.0,0.00013808,2]
[331792915,1720765870073,-500.0,0.00013808,2]
[331792916,1720765870082,-1078.13,0.00013808,2]
[331792917,1720765870092,-500.0,0.00013808,2]
[331792918,1720765870102,-500.0,0.00013808,2]
[331792919,1720765870112,-500.0,0.00013808,2]
[331792920,1720765870122,-599.97,0.00013808,2]
[331792921,1720765870132,-500.0,0.00013808,2]
[331792922,1720765870142,-500.0,0.00013808,2]
[331792923,1720765870152,-397.72134525,0.00013808,2]
[331792924,1720765870163,-572.91,0.00013808,2]
[331792925,1720765870172,-500.0,0.00013808,2]
[331792926,1720765870182,-500.0,0.00013808,2]
[331792927,1720765870193,-500.0,0.00013808,2]
[331792928,1720765870203,-151.0,0.00013808,2]
[331792929,1720765870214,-500.0,0.00013808,2]
[331792930,1720765870224,-500.0,0.00013808,2]
[331792931,1720765870234,-541.87,0.00013808,2]
[331792932,1720765870243,-561.01,0.00013808,2]
[331792933,1720765870255,-488.14580567,0.00013808,2]
[331792934,1720765870266,-151.0,0.00013808,2]
[331792935,1720765870276,-500.0,0.00013808,2]
[331792936,1720765870285,-577.81,0.00013808,2]
[331792937,1720765870294,-500.0,0.00013808,2]
[331792938,1720765870304,-500.0,0.00013808,2]
[331792939,1720765870314,-526.37,0.00013808,2]
[331792940,1720765870323,-500.0,0.00013808,2]
[331792941,1720765870334,-500.0,0.00013808,2]
[331792942,1720765870344,-500.0,0.00013808,2]
[331792943,1720765870354,-151.0,0.00013808,2]
[331792944,1720765870364,-500.0,0.00013808,2]
[331792945,1720765870377,-500.0,0.00013808,2]
[331792946,1720765870386,-500.0,0.00013808,2]
[331792947,1720765870396,-658.35,0.00013808,2]
[331792948,1720765870406,-500.0,0.00013808,2]
[331792949,1720765870416,-164.833302,0.00013808,2]
[331792950,1720765870426,-164.833302,0.00013808,2]
[331792951,1720765870435,-597.81,0.00013808,2]
[331792952,1720765870445,-665.34,0.00013808,2]
[331792953,1720765870455,-879.54,0.00013808,2]
[331792954,1720765870465,-151.0,0.00013808,2]
[331792955,1720765870475,-500.0,0.00013808,2]
[331792956,1720765870486,-500.0,0.00013808,2]
[331792957,1720765870500,-1042.83,0.00013808,2]
[331792958,1720765870511,-500.0,0.00013808,2]
[331792959,1720765870521,-500.0,0.00013808,2]
[331792960,1720765870532,-500.0,0.00013808,2]
[331792961,1720765870542,-500.0,0.00013808,2]
[331792962,1720765870552,-500.0,0.00013808,2]
[331792963,1720765870563,-358.95,0.00013808,2]
[331792964,1720765870574,-500.0,0.00013808,2]
[331792965,1720765870583,-500.0,0.00013808,2]
[331792966,1720765870592,-295.84,0.00013808,2]
[331792967,1720765870602,-500.0,0.00013808,2]
[331792968,1720765870612,-151.0,0.00013808,2]
[331792969,1720765870623,-500.0,0.00013808,2]
[331792970,1720765870634,-151.0,0.00013808,2]
[331792971,1720765870643,-151.0,0.00013808,2]
[331792972,1720765870654,-801.96,0.00013808,2]
[331792973,1720765870665,-500.0,0.00013808,2]
[331792974,1720765870674,-151.0,0.00013808,2]
[331792975,1720765870684,-676.83,0.00013808,2]
[331792976,1720765870693,-500.0,0.00013808,2]
[331792977,1720765870703,-485.35884601,0.00013808,2]
[331792978,1720765870712,-185.68,0.00013808,2]
[331792979,1720765870722,-416.55859361,0.00013808,2]
[331792980,1720765870731,-576.46,0.00013808,2]
[331792981,1720765870741,-500.0,0.00013808,2]
[331792982,1720765870751,-679.71,0.00013808,2]
[331792983,1720765870762,-500.0,0.00013808,2]
[331792984,1720765870773,-500.0,0.00013808,2]
[331792985,1720765870782,-500.0,0.00013808,2]
[331792986,1720765870791,-500.0,0.00013808,2]
[331792987,1720765870801,-699.82,0.00013808,2]
[331792988,1720765870810,-547.68,0.00013808,2]
[331792989,1720765870819,-151.0,0.00013808,2]
[331792990,1720765870829,-151.0,0.00013808,2]
[331792991,1720765870838,-500.0,0.00013808,2]
[331792992,1720765870847,-500.0,0.00013808,2]
[331792993,1720765870857,-500.0,0.00013808,2]
[331792994,1720765870866,-500.0,0.00013808,2]
[331792995,1720765870875,-500.0,0.00013808,2]
[331792996,1720765870885,-500.0,0.00013808,2]
[331792997,1720765870894,-500.0,0.00013808,2]
[331792998,1720765870903,-500.0,0.00013808,2]
[331792999,1720765870914,-500.0,0.00013808,2]
[331793000,1720765870923,-500.0,0.00013808,2]
[331793001,1720765870932,-500.0,0.00013808,2]
[331793002,1720765870942,-902.64,0.00013808,2]
[331793003,1720765870952,-500.0,0.00013808,2]
[331793004,1720765870963,-500.0,0.00013808,2]
[331793005,1720765870972,-500.0,0.00013808,2]
[331793006,1720765870982,-969.66,0.00013808,2]
[331793007,1720765870991,-500.0,0.00013808,2]
[331793008,1720765871001,-500.0,0.00013808,2]
[331793009,1720765871011,-529.84,0.00013808,2]
[331793010,1720765871021,-500.0,0.00013808,2]
[331793011,1720765871032,-500.0,0.00013808,2]
[331793012,1720765871042,-1386.9,0.00013808,2]
[331793013,1720765871051,-500.0,0.00013808,2]
[331793014,1720765871061,-500.0,0.00013808,2]
[331793015,1720765871071,-500.0,0.00013808,2]
[331793016,1720765871081,-500.0,0.00013808,2]
[331793017,1720765871090,-500.0,0.00013808,2]
[331793018,1720765871100,-541.72,0.00013808,2]
[331793019,1720765871110,-500.0,0.00013808,2]
[331793020,1720765871119,-500.0,0.00013808,2]
[331793021,1720765871129,-500.0,0.00013808,2]
[331793022,1720765871141,-500.0,0.00013808,2]
[331793023,1720765871151,-500.0,0.00013808,2]
[331793024,1720765871162,-500.0,0.00013808,2]
[331793025,1720765871171,-151.0,0.00013808,2]
[331793026,1720765871181,-832.86,0.00013808,2]
[331793027,1720765871192,-151.0,0.00013808,2]
[331793028,1720765871202,-1142.56,0.00013808,2]
[331793029,1720765871212,-584.03,0.00013808,2]
[331793030,1720765871222,-151.0,0.00013808,2]
[331793031,1720765871232,-151.0,0.00013808,2]
[331793032,1720765871243,-500.0,0.00013808,2]
[331793033,1720765871253,-184.877998,0.00013808,2]
[331793034,1720765871262,-220.04279,0.00013808,2]
[331793035,1720765871274,-184.877998,0.00013808,2]
[331793036,1720765871284,-500.0,0.00013808,2]
[331793037,1720765871296,-678.02,0.00013808,2]
[331793038,1720765871307,-626.32,0.00013808,2]
[331793039,1720765871318,-965.58,0.00013808,2]
[331793040,1720765871328,-980.86,0.00013808,2]
[331793041,1720765871338,-184.877998,0.00013808,2]
[331793042,1720765871349,-500.0,0.00013808,2]
[331793043,1720765871359,-184.877998,0.00013808,2]
[331793044,1720765871371,-500.0,0.00013808,2]
[331793045,1720765871380,-500.0,0.00013808,2]
[331793046,1720765871392,-503.0,0.00013808,2]
[331793047,1720765871402,-500.0,0.00013808,2]
[331793048,1720765871413,-525.9,0.00013808,2]
[331793049,1720765871422,-500.0,0.00013808,2]
[331793050,1720765871432,-500.0,0.00013808,2]
[331793051,1720765871444,-500.0,0.00013808,2]
[331793052,1720765871455,-500.0,0.00013808,2]
[331793053,1720765871466,-500.0,0.00013808,2]
[331793054,1720765871475,-500.0,0.00013808,2]
[331793055,1720765871484,-500.0,0.00013808,2]
[331793056,1720765871497,-500.0,0.00013808,2]
[331793057,1720765871506,-625.22,0.00013808,2]
[331793058,1720765871516,-500.0,0.00013808,2]
[331793059,1720765871525,-500.0,0.00013808,2]
[331793060,1720765871535,-151.0,0.00013808,2]
[331793061,1720765871544,-151.0,0.00013808,2]
[331793062,1720765871553,-500.0,0.00013808,2]
[331793063,1720765871563,-500.0,0.00013808,2]
[331793064,1720765871573,-500.0,0.00013808,2]
[331793065,1720765871583,-500.0,0.00013808,2]
[331793066,1720765871592,-1043.71,0.00013808,2]
[331793067,1720765871601,-500.0,0.00013808,2]
[331793068,1720765871610,-500.0,0.00013808,2]
[331793069,1720765871620,-1095.96,0.00013808,2]
[331793070,1720765871632,-663.07,0.00013808,2]
[331793071,1720765871641,-500.0,0.00013808,2]
[331793072,1720765871652,-500.0,0.00013808,2]
[331793073,1720765871666,-500.0,0.00013808,2]
[331793074,1720765871676,-500.0,0.00013808,2]
[331793075,1720765871685,-500.0,0.00013808,2]
[331793076,1720765871695,-500.0,0.00013808,2]
[331793077,1720765871704,-500.0,0.00013808,2]
[331793078,1720765871715,-1311.76,0.00013808,2]
[331793079,1720765871726,-500.0,0.00013808,2]
[331793080,1720765871735,-151.0,0.00013808,2]
[331793081,1720765871745,-268.358351,0.00013808,2]
[331793082,1720765871756,-500.0,0.00013808,2]
[331793083,1720765871766,-500.0,0.00013808,2]
[331793084,1720765871776,-500.0,0.00013808,2]
[331793085,1720765871786,-500.0,0.00013808,2]
[331793086,1720765871801,-500.0,0.00013808,2]
[331793087,1720765871812,-500.0,0.00013808,2]
[331793088,1720765871822,-500.0,0.00013808,2]
[331793089,1720765871832,-1064.74,0.00013808,2]
[331793090,1720765871843,-500.0,0.00013808,2]
[331793091,1720765871854,-500.0,0.00013808,2]
[331793092,1720765871864,-310.12,0.00013808,2]
[331793093,1720765871873,-500.0,0.00013808,2]
[331793094,1720765871883,-1453.03,0.00013808,2]
[331793095,1720765871892,-500.0,0.00013808,2]
[331793096,1720765871903,-506.91,0.00013808,2]
[331793097,1720765871913,-625.46,0.00013808,2]
[331793098,1720765871922,-151.0,0.00013808,2]
[331793099,1720765871932,-259.6,0.00013808,2]
[331793100,1720765871942,-651.67,0.00013808,2]
[331793101,1720765871952,-500.0,0.00013808,2]
[331793102,1720765871961,-1301.15,0.00013808,2]
[331793103,1720765871971,-201.452247,0.00013808,2]
[331793104,1720765871981,-500.0,0.00013808,2]
[331793105,1720765871991,-500.0,0.00013808,2]
[331793106,1720765872000,-500.0,0.00013808,2]
[331793107,1720765872010,-618.62,0.00013808,2]
[331793108,1720765872019,-500.0,0.00013808,2]
[331793109,1720765872029,-500.0,0.00013808,2]
[331793110,1720765872038,-1182.83,0.00013808,2]
[331793111,1720765872048,-871.11,0.00013808,2]
[331793112,1720765872057,-500.0,0.00013808,2]
[331793113,1720765872066,-500.0,0.00013808,2]
[331793114,1720765872076,-500.0,0.00013808,2]
[331793115,1720765872085,-886.56,0.00013808,2]
[331793116,1720765872095,-500.0,0.00013808,2]
[331793117,1720765872104,-151.0,0.00013808,2]
[331793118,1720765872114,-1085.4,0.00013808,2]
[331793119,1720765872124,-184.427444,0.00013808,2]
[331793120,1720765872133,-184.427444,0.00013808,2]
[331793121,1720765872143,-500.0,0.00013808,2]
[331793122,1720765872152,-896.6,0.00013808,2]
[331793123,1720765872163,-830.96,0.00013808,2]
[331793124,1720765872172,-500.0,0.00013808,2]
[331793125,1720765872181,-674.06,0.00013808,2]
[331793126,1720765872191,-184.427444,0.00013808,2]
[331793127,1720765872200,-184.427444,0.00013808,2]
[331793128,1720765872210,-1895.01,0.00013808,2]
[331793129,1720765872219,-191.349304,0.00013808,2]
[331793130,1720765872228,-533.22,0.00013808,2]
[331793131,1720765872238,-1172.9,0.00013808,2]
[331793132,1720765872247,-500.0,0.00013808,2]
[331793133,1720765872256,-500.0,0.00013808,2]